bitfinex/quotes_SOLUSD_20240714
["timestamp","ask_amount","ask_price","bid_price","bid_amount"]
[1720918858417,14.75770616,145.51,145.46,11.16]
[1720918858935,3.59770616,145.51,145.47,11.16]
[1720918859128,14.75770616,145.51,145.47,11.16]
[1720918860545,3.59770616,145.51,145.48,46.37463882]
[1720918860717,3.59770616,145.51,145.5,11.16]
[1720918861046,3.59770616,145.51,145.45,11.16]
[1720918861345,3.59770616,145.51,145.49,11.16]
[1720918861639,3.59770616,145.51,145.46,1.37473545]
[1720918861814,14.75770616,145.51,145.46,11.16]
[1720918862012,3.59770616,145.51,145.47,11.16]
[1720918862257,22.2064,145.5,145.33,21.9501]
[1720918862434,16.0364,145.5,145.41,15.6597]
[1720918862648,16.0364,145.5,145.46,11.16]
[1720918862831,14.75770616,145.51,145.47,1.3747324]
[1720918862832,3.59770616,145.51,145.47,1.3747324]
[1720918863149,3.59770616,145.51,145.42,1.37453804]
[1720918863435,3.59770616,145.51,145.47,11.16]
[1720918864215,3.59770616,145.51,145.43,1.37469893]
[1720918864216,14.75770616,145.51,145.46,11.16]
[1720918864642,3.59770616,145.51,145.41,21.9501]
[1720918864826,3.59770616,145.51,145.45,11.16]
[1720918865023,3.59770616,145.51,145.41,21.9501]
[1720918865529,3.59770616,145.51,145.43,11.16]
[1720918865724,3.59770616,145.51,145.44,11.16]
[1720918866329,3.59770616,145.51,145.45,11.16]
[1720918866532,11.16,145.5,145.45,11.16]
[1720918866932,3.59770616,145.51,145.45,11.16]
[1720918867133,11.16,145.5,145.45,11.16]
[1720918867721,11.16,145.5,145.42,1.37482757]
[1720918867722,3.59770616,145.51,145.47,11.16]
[1720918868042,3.59770616,145.51,145.48,11.16]
[1720918869035,11.16,145.5,145.41,21.9501]
[1720918869241,11.16,145.5,145.45,11.16]
[1720918869455,11.16,145.49,145.44,11.16]
[1720918869633,3.59770616,145.51,145.46,11.16]
[1720918869953,3.59770616,145.51,145.47,11.16]
[1720918870744,14.75770616,145.51,145.44,1.37471618]
[1720918870933,14.75770616,145.51,145.46,11.16]
[1720918871131,3.59770616,145.51,145.42,45.0]
[1720918871349,11.16,145.5,145.45,11.16]
[1720918871643,3.59770616,145.51,145.41,21.4501]
[1720918871824,11.16,145.49,145.44,11.16]
[1720918872028,3.59770616,145.51,145.38,6.2904]
[1720918872339,11.16,145.47,145.42,11.16]
[1720918872549,16.0364,145.48,145.43,1.37515238]
[1720918872749,16.0364,145.48,145.44,11.16]
[1720918873450,16.0364,145.48,145.4,1.37500739]
[1720918873626,16.0364,145.48,145.4,46.37500739]
[1720918873830,16.0364,145.48,145.45,11.16]
[1720918874035,34.75770616,145.51,145.46,11.16]
[1720918874852,11.16,145.5,145.4,60.6597]
[1720918875051,11.16,145.5,145.45,11.16]
[1720918875527,23.59770616,145.51,145.46,11.16]
[1720918875726,34.75770616,145.51,145.46,11.16]
[1720918876344,14.75770616,145.51,145.46,11.16]
[1720918876740,11.16,145.5,145.4,60.6597]
[1720918876940,14.75770616,145.51,145.46,11.16]
[1720918877275,3.59770616,145.51,145.49,11.16]
[1720918878031,0.8347028,145.51,145.49,11.16]
[1720918879050,0.8347028,145.51,145.46,11.16]
[1720918879051,11.9947028,145.51,145.46,11.16]
[1720918879350,0.8347028,145.51,145.45,1.37468881]
[1720918879545,11.9947028,145.51,145.46,11.16]
[1720918879733,0.8347028,145.51,145.46,11.16]
[1720918880055,11.9947028,145.51,145.46,11.16]
[1720918880345,11.9947028,145.51,145.42,1.37472765]
[1720918880346,0.8347028,145.51,145.42,1.37472765]
[1720918880527,11.16,145.49,145.44,11.16]
[1720918880946,6.0081,145.48,145.37,6.1368]
[1720918881147,11.16,145.46,145.41,11.16]
[1720918881648,11.16,145.47,145.42,11.16]
[1720918881834,11.16,145.45,145.34,25.31473325]
[1720918882039,6.0081,145.48,145.4,11.16]
[1720918882040,11.16,145.44,145.4,11.16]
[1720918882440,11.16,145.45,145.4,11.16]
[1720918882636,6.0081,145.48,145.42,11.16]
[1720918882843,27.2758,145.49,145.44,11.16]
[1720918883238,29.97917247,145.49,145.44,11.16]
[1720918884252,11.16,145.48,145.43,11.16]
[1720918884550,18.81917247,145.49,145.34,43.2841]
[1720918884857,18.81917247,145.49,145.38,22.3]
[1720918885037,18.81917247,145.49,145.39,45.0]
[1720918885245,18.81917247,145.49,145.4,1.37510111]
[1720918886539,0.8347028,145.51,145.41,22.3]
[1720918886741,23.59110378,145.51,145.42,46.37478727]
[1720918887034,23.59110378,145.51,145.43,1.37478102]
[1720918887648,20.8347028,145.51,145.43,1.37478102]
[1720918891565,0.8347028,145.51,145.43,1.37478102]
[1720918892059,0.8347028,145.51,145.44,22.3]
[1720918892283,0.8347028,145.51,145.45,46.37451836]
[1720918892452,0.8347028,145.51,145.46,1.37451626]
[1720918894958,0.8347028,145.51,145.46,23.94861626]
[1720918895143,0.8347028,145.51,145.47,45.0]
[1720918895345,0.8347028,145.51,145.48,1.37449518]
[1720918897047,17.4644028,145.51,145.38,20.71]
[1720918897247,17.4644028,145.51,145.41,1.37448983]
[1720918897442,30.0,145.48,145.41,1.37448983]
[1720918897765,30.0,145.48,145.43,22.8852]
[1720918897961,30.0,145.48,145.45,22.3]
[1720918898263,0.8347028,145.51,145.45,22.3]
[1720918898559,0.8347028,145.51,145.46,45.0]
[1720918899460,16.6297,145.5,145.39,22.8852]
[1720918899964,30.0,145.47,145.39,22.8852]
[1720918901774,30.0,145.47,145.37,22.3]
[1720918903691,40.0,145.47,145.38,45.0]
[1720918903852,40.0,145.47,145.37,22.3]
[1720918904775,30.0,145.47,145.37,22.3]
[1720918905085,30.0,145.47,145.38,45.0]
[1720918906654,30.0,145.47,145.31,20.71]
[1720918906655,10.0,145.45,145.31,22.8852]
[1720918906973,30.0,145.43,145.31,22.8852]
[1720918907275,20.0,145.42,145.31,22.8852]
[1720918907460,20.0,145.42,145.28,43.5952]
[1720918907461,16.6297,145.41,145.28,43.5952]
[1720918907777,30.0,145.39,145.29,22.3]
[1720918909255,30.0,145.39,145.3,20.0]
[1720918909774,30.0,145.39,145.31,1.37601912]
[1720918910570,30.0,145.39,145.31,46.37601912]
[1720918910771,30.0,145.39,145.3,20.0]
[1720918910772,20.0,145.38,145.29,1.37597191]
[1720918910991,30.0,145.37,145.26,22.3]
[1720918911174,30.0,145.37,145.27,1.37631235]
[1720918912557,30.0,145.37,145.27,46.37631235]
[1720918914682,16.6297,145.36,145.26,22.3]
[1720918914889,30.0,145.34,145.28,1.37620259]
[1720918916461,30.0,145.34,145.27,45.0]
[1720918918664,30.0,145.34,145.31,11.17]
[1720918919076,30.0,145.34,145.32,11.17]
[1720918919483,30.0,145.34,145.28,1.37635436]
[1720918919691,30.0,145.34,145.31,11.17]
[1720918920572,30.0,145.34,145.28,1.37635436]
[1720918920779,30.0,145.34,145.3,11.17]
[1720918921170,21.1233,145.4,145.33,11.17]
[1720918921370,7.13410871,145.44,145.39,11.17]
[1720918921371,15.0719,145.43,145.39,11.17]
[1720918921690,15.0719,145.43,145.41,11.17]
[1720918922389,15.0719,145.43,145.42,11.17]
[1720918922581,35.0005985,145.47,145.42,11.17]
[1720918922787,32.2706,145.47,145.42,11.17]
[1720918922978,32.2706,145.47,145.43,11.17]
[1720918922979,21.1006,145.47,145.43,11.17]
[1720918923178,21.1006,145.47,145.44,11.17]
[1720918923573,21.1006,145.47,145.43,11.17]
[1720918924792,21.1006,145.47,145.4,1.37525116]
[1720918924793,15.0719,145.47,145.44,1.37505502]
[1720918925096,15.0719,145.47,145.41,1.3749783]
[1720918925310,15.0719,145.47,145.41,46.3749783]
[1720918925669,15.0719,145.47,145.41,45.0]
[1720918927670,6.0287,145.5,145.42,1.37495449]
[1720918928001,6.0287,145.5,145.42,23.66495449]
[1720918928303,0.3185184,145.5,145.43,45.0]
[1720918928601,0.3185184,145.5,145.44,1.37471474]
[1720918928973,0.3185184,145.5,145.44,23.66471474]
[1720918929168,0.3185184,145.5,145.45,45.0]
[1720918929398,0.3185184,145.5,145.46,1.37451889]
[1720918929809,0.3185184,145.5,145.45,45.0]
[1720918930192,0.3185184,145.5,145.46,1.37455488]
[1720918931494,0.3185184,145.5,145.45,45.0]
[1720918931695,0.3185184,145.5,145.46,1.37453524]
[1720918932095,0.3185184,145.5,145.46,21.37453524]
[1720918932316,0.3185184,145.5,145.47,67.29]
[1720918932485,0.3185184,145.5,145.48,1.37426515]
[1720918932683,0.3185184,145.5,145.47,67.29]
[1720918933291,0.3185184,145.5,145.37,261.80150659]
[1720918933590,0.3185184,145.5,145.43,22.29]
[1720918933796,0.3185184,145.5,145.44,1.37461346]
[1720918934215,0.3185184,145.5,145.43,22.29]
[1720918934401,0.3185184,145.5,145.44,1.37461419]
[1720918935101,0.3185184,145.5,145.44,46.374602]
[1720918935416,0.3185184,145.5,145.46,22.29]
[1720918935614,0.3185184,145.5,145.47,46.3742763]
[1720918937910,0.3185184,145.5,145.47,45.0]
[1720918938721,0.3185184,145.5,145.37,22.2267]
[1720918938924,15.5805,145.49,145.41,22.29]
[1720918939621,15.5805,145.49,145.42,1.3746167]
[1720918939919,15.5805,145.49,145.43,1.3749012]
[1720918940120,15.5805,145.49,145.41,22.29]
[1720918940504,45.0,145.48,145.39,22.29]
[1720918940827,45.0,145.48,145.36,22.29]
[1720918940999,20.0,145.47,145.37,0.96460848]
[1720918941198,20.0,145.47,145.36,22.29]
[1720918941614,20.0,145.48,145.36,22.29]
[1720918941835,20.0,145.48,145.36,43.0]
[1720918941997,20.0,145.48,145.36,22.29]
[1720918942425,20.0,145.48,145.37,45.0]
[1720918942620,20.0,145.48,145.38,1.37526057]
[1720918942826,15.5805,145.49,145.39,22.29]
[1720918943006,15.5805,145.49,145.4,46.37491149]
[1720918943206,15.5805,145.49,145.42,22.29]
[1720918943207,15.8990184,145.49,145.42,22.29]
[1720918943407,15.8990184,145.49,145.43,45.0]
[1720918943620,15.8990184,145.49,145.44,20.0]
[1720918944226,15.8990184,145.49,145.38,22.29]
[1720918944520,15.8990184,145.49,145.39,65.0]
[1720918945507,15.8990184,145.49,145.39,85.71]
[1720918945729,15.8990184,145.49,145.41,22.29]
[1720918945933,15.8990184,145.49,145.42,66.37474927]
[1720918946102,15.8990184,145.49,145.42,65.0]
[1720918946302,0.3185184,145.49,145.42,65.0]
[1720918947218,0.3185184,145.49,145.43,1.37491836]
[1720918947910,0.3185184,145.49,145.39,22.29]
[1720918948226,0.3185184,145.49,145.4,1.37517558]
[1720918948822,0.3185184,145.49,145.4,1.37514495]
[1720918949026,0.3185184,145.49,145.4,46.37514495]
[1720918949508,0.3185184,145.49,145.41,20.0]
[1720918949717,0.3185184,145.49,145.42,45.0]
[1720918950017,0.3185184,145.49,145.43,1.37503323]
[1720918950728,0.3185184,145.49,145.43,1.37478544]
[1720918950935,0.3185184,145.49,145.43,21.37478544]
[1720918951234,0.3185184,145.49,145.45,22.29]
[1720918951420,0.3185184,145.49,145.46,66.37453521]
[1720918952838,0.3185184,145.49,145.38,15.7214]
[1720918953015,0.3185184,145.49,145.41,22.29]
[1720918953415,0.3185184,145.49,145.41,43.0]
[1720918953615,0.3185184,145.49,145.41,22.29]
[1720918954046,0.3185184,145.49,145.42,66.37484313]
[1720918954222,0.3185184,145.49,145.43,22.29]
[1720918954541,0.3185184,145.49,145.44,65.0]
[1720918954742,0.3185184,145.49,145.44,20.0]
[1720918954935,0.3185184,145.49,145.42,22.29]
[1720918955133,0.3185184,145.49,145.43,65.0]
[1720918955351,0.3185184,145.49,145.44,0.95912964]
[1720918955644,0.3185184,145.49,145.43,65.0]
[1720918957235,0.3185184,145.49,145.43,45.0]
[1720918957817,0.3185184,145.49,145.4,22.29]
[1720918958030,6.2494,145.48,145.39,22.29]
[1720918958453,6.5679184,145.48,145.39,22.29]
[1720918959133,16.3836,145.47,145.39,22.29]
[1720918959353,16.3836,145.47,145.4,20.0]
[1720918960247,16.3836,145.47,145.39,22.29]
[1720918960461,16.3836,145.47,145.36,22.29]
[1720918961630,16.3836,145.47,145.37,45.0]
[1720918962845,16.3836,145.47,145.38,20.0]
[1720918964155,16.3836,145.47,145.39,67.29]
[1720918965533,16.3836,145.47,145.39,22.29]
[1720918965937,16.3836,145.47,145.38,20.0]
[1720918966125,16.3836,145.47,145.36,22.29]
[1720918966319,45.0,145.46,145.37,20.0]
[1720918967058,45.0,145.46,145.33,20.0]
[1720918967549,16.3836,145.45,145.32,22.29]
[1720918967749,22.633,145.45,145.33,22.29]
[1720918967922,45.0,145.44,145.33,22.29]
[1720918969536,45.0,145.44,145.34,20.0]
[1720918970353,16.3836,145.43,145.34,20.0]
[1720918973653,16.7021184,145.43,145.34,20.0]
[1720918975575,26.7021184,145.43,145.34,20.0]
[1720918975777,26.7021184,145.43,145.33,22.29]
[1720918975778,16.7021184,145.43,145.33,22.29]
[1720918977071,177.03607959,145.57,145.34,15.0]
[1720918977273,10.0,145.45,145.35,45.0]
[1720918979276,10.0,145.45,145.36,15.0]
[1720918979461,10.0,145.45,145.35,45.0]
[1720918980173,21.9353,145.44,145.35,45.0]
[1720918984054,21.9353,145.44,145.36,16.37580669]
[1720918984260,21.9353,145.44,145.37,45.0]
[1720918989077,21.9353,145.44,145.38,1.37559362]
[1720918989282,21.9353,145.44,145.4,15.0]
[1720918991484,21.9353,145.44,145.38,16.37559362]
[1720918991675,21.9353,145.44,145.39,45.0]
[1720918991876,21.9353,145.44,145.38,1.37559362]
[1720918992570,21.9353,145.44,145.38,15.0]
[1720918992773,21.9353,145.44,145.39,45.0]
[1720918994967,21.9353,145.44,145.39,60.0]
[1720918995292,21.9353,145.44,145.39,45.0]
[1720918995476,21.9353,145.44,145.38,45.0]
[1720918995666,21.9353,145.44,145.39,1.37532331]
[1720918995868,15.3157,145.44,145.39,1.37529036]
[1720918996375,15.3157,145.44,145.4,15.0]
[1720918996687,15.3157,145.44,145.41,45.0]
[1720918997786,15.3157,145.44,145.36,15.0]
[1720918998097,7.20269398,145.52,145.43,22.29]
[1720918998292,15.2372,145.54,145.47,37.29]
[1720918998470,15.2372,145.54,145.48,1.37408943]
[1720918998670,15.2372,145.54,145.49,16.37427985]
[1720918999094,15.2372,145.54,145.5,45.0]
[1720918999277,15.2372,145.54,145.51,16.37426773]
[1720918999477,15.2372,145.54,145.52,45.0]
[1720919000206,15.2372,145.54,145.49,15.0]
[1720919000377,15.2372,145.54,145.5,45.0]
[1720919001170,15.2372,145.54,145.51,1.37431311]
[1720919001774,15.2372,145.54,145.5,45.0]
[1720919002680,15.2372,145.54,145.51,15.0]
[1720919003506,15.2372,145.54,145.52,45.0]
[1720919003803,15.2372,145.54,145.51,15.0]
[1720919003977,15.2372,145.54,145.52,45.0]
[1720919005301,122.03194213,145.57,145.52,45.0]
[1720919005804,122.03194213,145.57,145.51,45.0]
[1720919006600,21.706,145.56,145.46,15.0]
[1720919007408,31.706,145.56,145.46,15.0]
[1720919007782,63.996,145.56,145.46,15.0]
[1720919007981,30.0,145.52,145.46,15.0]
[1720919009191,30.0,145.52,145.47,45.0]
[1720919009807,15.2372,145.51,145.47,45.0]
[1720919010008,15.2372,145.51,145.41,16.0131]
[1720919010009,6.4688,145.5,145.41,15.0]
[1720919010218,6.4688,145.5,145.38,15.0]
[1720919010398,6.4688,145.5,145.39,1.37520884]
[1720919010590,6.4688,145.5,145.4,15.0]
[1720919010789,6.4688,145.5,145.41,1.37501999]
[1720919010982,6.4688,145.5,145.42,15.0]
[1720919011404,30.0,145.49,145.42,15.0]
[1720919012706,30.0,145.49,145.43,45.0]
[1720919014318,30.0,145.49,145.43,45.89106639]
[1720919014717,30.0,145.49,145.44,1.37494105]
[1720919015015,30.0,145.49,145.44,16.37494105]
[1720919015215,30.0,145.49,145.45,45.0]
[1720919015518,30.0,145.49,145.44,1.37494105]
[1720919015716,30.0,145.49,145.43,45.0]
[1720919016790,30.0,145.49,145.4,1.37494107]
[1720919017116,15.2372,145.48,145.4,1.37520655]
[1720919017300,30.0,145.47,145.4,1.37520655]
[1720919017992,30.0,145.47,145.39,15.0]
[1720919018492,30.0,145.47,145.4,46.37538172]
[1720919019192,30.0,145.47,145.4,45.0]
[1720919019701,30.0,145.47,145.39,15.0]
[1720919019898,30.0,145.47,145.37,15.0]
[1720919020088,30.0,145.47,145.38,1.37549853]
[1720919021118,30.0,145.47,145.38,46.37549853]
[1720919023000,15.2372,145.48,145.38,1.37549853]
[1720919023305,6.4888,145.47,145.38,1.37549853]
[1720919023490,6.4888,145.47,145.33,15.0]
[1720919023491,6.4888,145.44,145.33,15.0]
[1720919023812,16.4359,145.43,145.31,15.0]
[1720919024020,16.4359,145.43,145.33,15.0]
[1720919024616,30.0,145.42,145.33,15.0]
[1720919025117,30.0,145.42,145.34,45.0]
[1720919025924,30.0,145.42,145.33,15.0]
[1720919026497,30.0,145.42,145.34,1.37588626]
[1720919026999,30.0,145.42,145.34,46.37588626]
[1720919029218,30.0,145.42,145.34,45.0]
[1720919029798,30.0,145.42,145.34,61.37587033]
[1720919030608,30.0,145.42,145.34,83.66587033]
[1720919031908,30.0,145.42,145.34,15.0]
[1720919033313,30.0,145.42,145.35,45.0]
[1720919036023,30.0,145.42,145.36,1.37588801]
[1720919036500,30.0,145.42,145.35,46.37574156]
[1720919036935,30.0,145.42,145.36,1.37578497]
[1720919037223,30.0,145.42,145.35,45.0]
[1720919038626,30.0,145.42,145.36,1.37580791]
[1720919038841,16.4359,145.43,145.36,1.37580791]
[1720919040234,16.4359,145.43,145.36,16.37580791]
[1720919040415,16.4288,145.47,145.37,67.29]
[1720919040730,16.4288,145.47,145.38,16.37530211]
[1720919040933,16.4288,145.47,145.39,45.0]
[1720919041119,16.4288,145.47,145.4,1.37517189]
[1720919041921,16.4288,145.47,145.39,45.0]
[1720919043117,16.4288,145.47,145.4,1.37515961]
[1720919043429,16.4288,145.47,145.39,45.0]
[1720919043635,16.4288,145.47,145.4,1.37530451]
[1720919044634,16.4288,145.47,145.4,58.66530451]
[1720919044820,16.4288,145.47,145.41,45.0]
[1720919045016,266.8593,145.52,145.42,1.37492123]
[1720919045017,19.16357211,145.51,145.42,1.37492123]
[1720919045215,16.4288,145.51,145.43,16.37491183]
[1720919045429,16.4288,145.51,145.44,45.0]
[1720919045609,16.4288,145.51,145.45,1.37476037]
[1720919045812,16.4288,145.51,145.46,1.37476058]
[1720919046036,16.4288,145.51,145.44,67.29]
[1720919046553,16.4288,145.51,145.44,68.66466965]
[1720919046757,16.4288,145.51,145.44,46.37466965]
[1720919047641,16.4288,145.51,145.45,15.0]
[1720919047838,16.4288,145.51,145.46,45.0]
[1720919048025,16.4288,145.51,145.46,46.37467009]
[1720919048225,16.4288,145.51,145.46,45.0]
[1720919050861,16.4288,145.51,145.46,46.37476183]
[1720919052740,16.4288,145.51,145.46,45.0]
[1720919053059,16.4288,145.51,145.46,45.6711726]
[1720919053255,16.4288,145.51,145.46,46.3747633]
[1720919054972,16.4288,145.51,145.43,15.0]
[1720919055461,16.4288,145.51,145.44,1.37498207]
[1720919056254,16.4288,145.51,145.43,15.0]
[1720919056867,16.4288,145.51,145.43,16.03568378]
[1720919057560,16.4288,145.51,145.44,45.0]
[1720919058158,16.4288,145.51,145.45,1.37495187]
[1720919058835,16.4288,145.51,145.44,45.0]
[1720919060666,11.14,145.5,145.45,11.14]
[1720919060839,11.14,145.5,145.46,45.0]
[1720919063275,11.14,145.49,145.46,45.0]
[1720919064068,11.14,145.5,145.46,56.14]
[1720919064467,16.4288,145.51,145.46,56.14]
[1720919064669,27.5688,145.51,145.46,56.14]
[1720919065001,11.14,145.5,145.46,56.14]
[1720919065171,11.14,145.49,145.46,45.0]
[1720919066280,11.14,145.48,145.46,45.0]
[1720919066478,11.14,145.48,145.45,45.0]
[1720919066655,11.14,145.49,145.45,45.0]
[1720919067674,11.14,145.49,145.45,56.14]
[1720919067857,16.4288,145.51,145.45,56.14]
[1720919068055,11.14,145.5,145.45,56.14]
[1720919068358,11.14,145.49,145.45,56.14]
[1720919068744,16.4288,145.51,145.45,56.14]
[1720919068949,11.14,145.5,145.45,56.14]
[1720919070366,11.14,145.5,145.45,45.0]
[1720919070577,11.14,145.49,145.44,56.14]
[1720919070879,16.4288,145.51,145.45,12.327529]
[1720919071173,11.14,145.5,145.46,45.0]
[1720919071360,16.4288,145.51,145.46,45.0]
[1720919071562,11.14,145.5,145.46,45.0]
[1720919072497,2.74432852,145.54,145.46,45.0]
[1720919072650,11.14,145.51,145.46,56.14]
[1720919073272,11.14,145.5,145.46,45.0]
[1720919073577,11.14,145.51,145.46,56.14]
[1720919074152,11.14,145.51,145.47,11.14]
[1720919074382,11.14,145.51,145.48,45.0]
[1720919074757,18.24387708,145.55,145.5,11.14]
[1720919075064,26.7091,145.55,145.51,45.0]
[1720919075269,11.14,145.55,145.51,45.0]
[1720919075470,11.14,145.54,145.51,45.0]
[1720919075657,11.14,145.52,145.45,37.6801]
[1720919075852,11.14,145.52,145.47,11.14]
[1720919076081,2.70534284,145.56,145.48,45.0]
[1720919076082,11.14,145.51,145.48,45.0]
[1720919076380,11.14,145.52,145.48,45.0]
[1720919076575,11.14,145.53,145.48,56.14]
[1720919076766,11.14,145.52,145.48,45.0]
[1720919076956,11.14,145.52,145.48,56.14]
[1720919077357,9.20515767,145.57,145.48,56.14]
[1720919077671,11.14,145.53,145.48,56.14]
[1720919078382,11.14,145.52,145.48,56.14]
[1720919078690,19.20515767,145.57,145.47,15.0]
[1720919078858,11.14,145.5,145.45,33.8201]
[1720919079058,11.14,145.49,145.41,37.7733]
[1720919079259,11.14,145.47,145.41,22.7733]
[1720919079469,11.14,145.46,145.41,48.9133]
[1720919079683,11.14,145.48,145.43,26.14]
[1720919080184,16.5235,145.52,145.42,11.14]
[1720919080185,11.14,145.47,145.42,11.14]
[1720919080379,11.14,145.48,145.43,11.14]
[1720919080681,16.5235,145.52,145.44,56.14]
[1720919080883,11.14,145.49,145.44,56.14]
[1720919082185,16.5235,145.52,145.44,56.14]
[1720919082487,11.14,145.51,145.46,11.14]
[1720919082690,16.5235,145.52,145.47,45.0]
[1720919082861,6.4885,145.54,145.47,56.14]
[1720919083065,11.14,145.51,145.47,45.0]
[1720919083283,11.14,145.53,145.47,45.0]
[1720919083489,11.14,145.49,145.47,45.0]
[1720919084489,11.14,145.49,145.46,45.0]
[1720919084965,11.14,145.47,145.43,15.0]
[1720919085772,11.14,145.47,145.43,26.14]
[1720919086587,44.56,145.53,145.44,45.0]
[1720919086788,11.14,145.47,145.44,45.0]
[1720919088095,11.14,145.46,145.43,45.0]
[1720919088292,11.14,145.45,145.41,15.0]
[1720919088505,11.14,145.44,145.41,15.0]
[1720919088993,11.14,145.44,145.4,11.14]
[1720919089577,16.5235,145.5,145.41,45.0]
[1720919089776,11.14,145.46,145.41,56.14]
[1720919090494,11.14,145.46,145.42,15.0]
[1720919090692,11.14,145.46,145.43,45.0]
[1720919091076,16.5235,145.5,145.43,45.0]
[1720919091273,11.14,145.46,145.43,45.0]
[1720919091480,16.5235,145.5,145.43,45.0]
[1720919091689,11.14,145.46,145.43,45.0]
[1720919092996,16.5235,145.5,145.43,45.0]
[1720919093198,11.14,145.47,145.43,45.0]
[1720919093501,11.14,145.48,145.44,11.14]
[1720919093674,23.012,145.54,145.45,56.14]
[1720919093875,11.14,145.5,145.45,11.14]
[1720919094073,11.14,145.5,145.46,45.0]
[1720919094373,11.14,145.49,145.46,45.0]
[1720919094574,11.14,145.49,145.45,45.0]
[1720919094970,11.14,145.49,145.4,1.37496316]
[1720919094971,11.14,145.46,145.39,6.3268]
[1720919095174,11.14,145.44,145.4,11.14]
[1720919095498,11.14,145.44,145.4,26.14]
[1720919095804,11.14,145.45,145.4,15.0]
[1720919095976,10.0,145.51,145.41,11.14]
[1720919096175,11.14,145.46,145.41,11.14]
[1720919097201,11.14,145.46,145.42,45.0]
[1720919097590,11.14,145.46,145.38,16.4465]
[1720919097591,11.14,145.43,145.38,16.4465]
[1720919097781,11.14,145.42,145.38,16.4465]
[1720919098181,11.14,145.46,145.38,27.5865]
[1720919098403,11.14,145.43,145.38,27.5865]
[1720919098591,11.14,145.43,145.37,15.0]
[1720919098800,11.14,145.42,145.37,26.14]
[1720919098973,11.14,145.42,145.35,21.0923]
[1720919099297,11.14,145.41,145.36,11.14]
[1720919099479,10.0,145.46,145.36,11.14]
[1720919099679,11.14,145.43,145.38,11.14]
[1720919100573,10.0,145.46,145.36,1.37562538]
[1720919100778,10.0,145.46,145.36,45.0]
[1720919101381,10.0,145.46,145.35,21.0923]
[1720919102588,12.72405594,145.46,145.36,45.0]
[1720919102800,22.31,145.45,145.35,21.0923]
[1720919103482,10.0,145.44,145.35,15.0]
[1720919103682,10.0,145.42,145.33,15.0]
[1720919104308,38.7644,145.43,145.33,15.0]
[1720919105313,16.4544,145.43,145.35,15.0]
[1720919105908,16.4544,145.43,145.36,45.0]
[1720919106687,16.4544,145.43,145.36,46.37588375]
[1720919106897,16.4544,145.43,145.36,45.0]
[1720919109295,16.4544,145.43,145.35,15.0]
[1720919109491,6.375,145.42,145.33,15.0]
[1720919110618,6.375,145.42,145.31,22.46843723]
[1720919111417,10.0,145.41,145.31,21.0923]
[1720919111913,30.0,145.4,145.31,21.0923]
[1720919112217,30.0,145.4,145.33,15.0]
[1720919112400,30.0,145.4,145.31,22.46850484]